bitfinex/quotes_BTCUSD_20230120
["timestamp","ask_amount","ask_price","bid_price","bid_amount"]
[1674249636590,0.92579115,22260.0,22255.0,7.985e-05]
[1674249636889,0.48548243,22259.0,22255.0,7.985e-05]
[1674249637138,0.305949,22258.0,22255.0,7.985e-05]
[1674249637415,0.319778,22257.0,22255.0,7.985e-05]
[1674249637676,1.34326715,22260.0,22255.0,7.985e-05]
[1674249637677,0.306749,22256.0,22255.0,0.44941585]
[1674249637940,0.43955,22260.0,22255.0,7.985e-05]
[1674249638197,0.2628,22260.0,22255.0,7.985e-05]
[1674249638473,0.15,22258.0,22255.0,7.985e-05]
[1674249638731,0.316374,22257.0,22255.0,0.44940585]
[1674249638989,0.15,22260.0,22255.0,0.44940585]
[1674249639583,0.33502243,22260.0,22255.0,0.44940585]
[1674249640356,0.309051,22259.0,22255.0,0.44940585]
[1674249640619,0.323249,22258.0,22255.0,7.985e-05]
[1674249640898,0.322299,22257.0,22255.0,7.985e-05]
[1674249641161,0.322753,22256.0,22255.0,7.985e-05]
[1674249641961,0.322753,22256.0,22253.0,0.22556903]
[1674249642270,0.32859,22258.0,22253.0,0.22556903]
[1674249642513,0.51361243,22258.0,22253.0,0.22556903]
[1674249642785,0.313778,22257.0,22253.0,0.22556903]
[1674249643041,0.313778,22257.0,22252.0,0.449393]
[1674249643042,0.296032,22256.0,22252.0,0.449393]
[1674249643294,0.15,22255.0,22251.0,0.449403]
[1674249643544,0.33502243,22255.0,22251.0,0.449403]
[1674249644061,0.33502243,22255.0,22251.0,0.23039532]
[1674249644576,0.15,22255.0,22251.0,0.23039532]
[1674249644860,0.15,22255.0,22250.0,0.449428]
[1674249645091,0.33502243,22255.0,22250.0,0.449428]
[1674249648312,0.18502243,22255.0,22251.0,0.15]
[1674249648562,0.15,22257.0,22250.0,0.449428]
[1674249648836,0.33502243,22257.0,22251.0,0.449401]
[1674249649372,0.315716,22256.0,22251.0,0.449401]
[1674249649602,0.316744,22255.0,22251.0,0.449401]
[1674249649849,0.318543,22254.0,22251.0,0.449401]
[1674249650111,0.18502243,22255.0,22251.0,0.449401]
[1674249650357,0.15,22257.0,22251.0,0.449401]
[1674249650601,0.33502243,22257.0,22251.0,0.449401]
[1674249650867,0.314472,22256.0,22251.0,0.449401]
[1674249651115,0.32589,22255.0,22251.0,0.449401]
[1674249651390,0.33318,22257.0,22251.0,0.449401]
[1674249651638,0.316746,22256.0,22251.0,0.449401]
[1674249651896,0.31306,22255.0,22251.0,0.449401]
[1674249652150,0.31306,22255.0,22250.0,0.449428]
[1674249652151,0.321427,22254.0,22250.0,0.449428]
[1674249652400,0.306897,22253.0,22249.0,0.45894014]
[1674249652738,0.317123,22252.0,22249.0,0.00949314]
[1674249652906,0.337442,22251.0,22249.0,0.00949314]
[1674249653175,0.319267,22250.0,22249.0,0.00949314]
[1674249653410,0.15,22254.0,22249.0,0.45894714]
[1674249654170,0.33502243,22254.0,22249.0,0.45894714]
[1674249654949,0.337824,22253.0,22249.0,0.00949314]
[1674249655239,0.320009,22252.0,22249.0,0.00949314]
[1674249655463,0.304803,22251.0,22249.0,0.45894614]
[1674249655731,0.15,22256.0,22249.0,0.45894614]
[1674249656024,0.18502243,22256.0,22251.0,0.1131]
[1674249656286,0.15,22258.0,22252.0,0.898774]
[1674249656809,0.51017243,22258.0,22252.0,0.898774]
[1674249657350,0.33502243,22258.0,22252.0,0.898774]
[1674249657600,0.18502243,22258.0,22252.0,0.898774]
[1674249657899,0.06892,22257.0,22253.0,0.3]
[1674249658145,0.15,22259.0,22254.0,0.898682]
[1674249659220,0.15,22263.0,22254.0,0.898682]
[1674249659481,0.15,22263.0,22256.0,0.1131]
[1674249659482,0.23368743,22263.0,22256.0,0.1131]
[1674249659735,0.048665,22263.0,22258.0,0.449274]
[1674249659988,0.15,22264.0,22258.0,0.449274]
[1674249660241,0.1128,22263.0,22258.0,0.449274]
[1674249660776,0.320571,22262.0,22258.0,0.449274]
[1674249661053,0.18502243,22262.0,22258.0,0.449274]
[1674249661308,0.15,22259.0,22256.0,0.449315]
[1674249661559,0.316322,22258.0,22256.0,0.449315]
[1674249661822,0.33502243,22259.0,22256.0,0.449315]
[1674249662083,0.15,22259.0,22256.0,0.449315]
[1674249662371,0.19427822,22259.0,22254.0,0.449341]
[1674249662630,0.19427822,22259.0,22253.0,0.449361]
[1674249662631,0.61799543,22258.0,22253.0,0.449361]
[1674249662894,0.15,22256.0,22253.0,0.449361]
[1674249663350,0.33502243,22256.0,22253.0,0.449361]
[1674249663356,0.15,22256.0,22253.0,0.449361]
[1674249664153,0.15,22256.0,22253.0,0.20851724]
[1674249664966,0.33502243,22256.0,22250.0,0.449435]
[1674249665227,0.49279443,22255.0,22250.0,0.449435]
[1674249665482,0.65038643,22254.0,22250.0,0.449435]
[1674249665776,0.33502243,22254.0,22250.0,0.449435]
[1674249666044,0.18502243,22253.0,22249.0,0.45894614]
[1674249666301,0.18502243,22253.0,22249.0,0.00949314]
[1674249666302,0.50041243,22252.0,22249.0,0.00949314]
[1674249666556,0.311787,22251.0,22249.0,0.00949314]
[1674249666802,0.327725,22250.0,22249.0,0.00949314]
[1674249667053,0.18566,22253.0,22249.0,0.00949314]
[1674249667337,0.15,22254.0,22249.0,0.00949314]
[1674249667598,0.15,22254.0,22249.0,0.45894514]
[1674249667843,0.319136,22253.0,22249.0,0.45894514]
[1674249668084,0.308229,22252.0,22249.0,0.45894514]
[1674249668391,0.32814,22251.0,22249.0,0.45894514]
[1674249668642,0.324455,22250.0,22249.0,0.45894514]
[1674249668896,0.18599,22253.0,22249.0,0.45894514]
[1674249669437,0.314203,22252.0,22249.0,0.45894514]
[1674249669694,0.309591,22251.0,22249.0,0.45894514]
[1674249669953,0.316791,22250.0,22249.0,0.45894514]
[1674249670213,0.2631,22256.0,22249.0,0.45894514]
[1674249670214,0.15,22256.0,22250.0,0.03167909]
[1674249670482,0.15,22256.0,22251.0,0.89881]
[1674249671300,0.2631,22258.0,22251.0,0.89881]
[1674249671589,0.44812243,22258.0,22251.0,0.89881]
[1674249671845,0.44812243,22258.0,22252.0,0.3]
[1674249672102,0.44812243,22258.0,22253.0,0.449368]
[1674249672415,0.2631,22258.0,22253.0,0.449368]
[1674249672669,2.3432,22260.0,22253.0,0.449368]
[1674249672670,1.3093,22260.0,22253.0,0.449368]
[1674249672962,1.49432243,22260.0,22253.0,0.449368]
[1674249673496,0.1131,22258.0,22251.0,0.449409]
[1674249673786,0.49196743,22257.0,22251.0,0.449409]
[1674249674040,0.51360843,22256.0,22251.0,0.449409]
[1674249674295,0.64116043,22255.0,22251.0,0.449409]
[1674249674563,0.320849,22254.0,22251.0,0.449409]
[1674249674813,0.315811,22253.0,22251.0,0.449409]
[1674249675095,0.316824,22252.0,22251.0,0.449409]
[1674249675353,0.0212548,22254.0,22251.0,0.449409]
[1674249676182,0.2622,22259.0,22252.0,0.3]
[1674249676448,0.2622,22259.0,22253.0,0.449376]
[1674249676972,0.44722243,22259.0,22253.0,0.449376]
[1674249677220,0.322908,22258.0,22253.0,0.449376]
[1674249677477,0.311028,22257.0,22253.0,0.449376]
[1674249677779,0.18502243,22258.0,22253.0,0.449376]
[1674249678328,0.327918,22257.0,22253.0,0.449376]
[1674249678586,0.327665,22256.0,22253.0,0.449376]
[1674249678841,0.63459243,22259.0,22253.0,0.449376]
[1674249679320,0.314619,22258.0,22253.0,0.449376]
[1674249679595,0.463204,22257.0,22253.0,0.449376]
[1674249679856,0.318438,22256.0,22250.0,0.449428]
[1674249680114,0.15,22254.0,22249.0,0.00949314]
[1674249680409,0.95263758,22253.0,22249.0,0.00949314]
[1674249680648,0.50203643,22252.0,22249.0,0.00949314]
[1674249680924,0.313607,22251.0,22249.0,0.00949314]
[1674249681192,0.309487,22250.0,22249.0,0.00949314]
[1674249681470,0.18751,22253.0,22249.0,0.00949314]
[1674249681978,0.2631,22254.0,22249.0,0.00949314]
[1674249681979,0.314014,22252.0,22249.0,0.00949314]
[1674249682250,0.2631,22254.0,22249.0,0.00949314]
[1674249682530,0.310933,22253.0,22249.0,0.45893814]
[1674249682798,0.304005,22252.0,22249.0,0.45893814]
[1674249683076,0.325565,22251.0,22249.0,0.45893814]
[1674249683337,0.310891,22250.0,22249.0,0.45893814]
[1674249683595,0.18831,22253.0,22249.0,0.45893814]
[1674249684100,0.318555,22252.0,22249.0,0.45893814]
[1674249684403,0.2631,22254.0,22249.0,0.45893814]
[1674249684404,0.316828,22251.0,22249.0,0.45893814]
[1674249684601,0.0687,22253.0,22249.0,0.45893814]
[1674249685601,0.05,22251.0,22249.0,0.45893814]
[1674249686581,0.04988238,22251.0,22250.0,0.15]
[1674249686836,0.04988238,22251.0,22250.0,0.599438]
[1674249687081,0.04988238,22251.0,22250.0,0.899438]
[1674249687337,0.0685,22260.0,22251.0,0.01623748]
[1674249687605,0.25352243,22260.0,22253.0,1.348089]
[1674249687846,0.0685,22260.0,22254.0,0.3]
[1674249688094,0.0685,22260.0,22255.0,1.048642]
[1674249688350,0.0687,22262.0,22255.0,1.048642]
[1674249688644,0.0687,22262.0,22256.0,0.3]
[1674249688859,0.0687,22262.0,22257.0,0.89856]
[1674249689142,0.05,22260.0,22257.0,0.89856]
[1674249690953,0.05,22260.0,22257.0,0.65456553]
[1674249692968,0.23502243,22260.0,22257.0,0.65456553]
[1674249693281,0.05,22260.0,22257.0,0.65456553]
[1674249694265,0.30302243,22260.0,22254.0,0.449337]
[1674249694569,0.51518043,22259.0,22253.0,0.449363]
[1674249694776,0.18502243,22258.0,22253.0,0.449363]
[1674249695035,0.18502243,22257.0,22253.0,0.449363]
[1674249696073,0.18502243,22257.0,22251.0,0.01623748]
[1674249696074,0.0687,22255.0,22251.0,0.01623748]
[1674249696349,0.0687,22253.0,22251.0,0.01623748]
[1674249696604,0.315554,22252.0,22251.0,0.01623748]
[1674249696856,0.25352243,22255.0,22251.0,0.46565548]
[1674249697113,0.0685,22255.0,22251.0,0.2545095]
[1674249697622,0.317552,22254.0,22251.0,0.2545095]
[1674249697897,0.45291,22258.0,22252.0,0.15]
[1674249698143,0.45291,22258.0,22252.0,0.967882]
[1674249698144,0.05,22258.0,22252.0,0.967882]
[1674249698658,0.23502243,22258.0,22252.0,0.967882]
[1674249702725,0.18502243,22257.0,22252.0,0.667882]
[1674249702985,0.18502243,22257.0,22252.0,0.517882]
[1674249703743,0.18502243,22257.0,22253.0,0.15]
[1674249703996,0.05,22258.0,22254.0,0.898706]
[1674249704259,0.05,22258.0,22255.0,0.3]
[1674249704535,0.05,22258.0,22255.0,0.749323]
[1674249705039,0.05,22258.0,22255.0,0.69383468]
[1674249705821,0.05,22258.0,22256.0,0.15]
[1674249706090,0.05,22258.0,22257.0,0.449296]
[1674249707943,0.045,22258.0,22256.0,0.449308]
[1674249708706,0.0415,22258.0,22256.0,0.449308]
[1674249709683,0.0415,22258.0,22257.0,0.15]
[1674249710012,0.0415,22258.0,22256.0,0.898608]
[1674249710219,0.0415,22258.0,22257.0,0.15]
[1674249710718,0.0415,22258.0,22257.0,0.45]
[1674249710975,0.0415,22258.0,22257.0,0.15]
[1674249711243,0.0415,22258.0,22257.0,0.45]
[1674249711803,0.03735001,22258.0,22257.0,0.45]
[1674249713302,0.01458529,22260.0,22258.0,0.15]
[1674249713553,0.01458529,22260.0,22258.0,1.343552]
[1674249713806,0.01458529,22260.0,22258.0,1.112152]
[1674249715146,0.01458529,22260.0,22259.0,0.3]
[1674249715367,0.01458529,22260.0,22259.0,0.749256]
[1674249715906,0.01458529,22260.0,22259.0,0.899256]
[1674249716701,0.01458529,22260.0,22259.0,0.599256]
[1674249718469,0.01458529,22260.0,22259.0,0.967556]
[1674249718731,0.01027983,22267.0,22260.0,0.01821815]
[1674249719014,0.01027983,22267.0,22262.0,1.796772]
[1674249719261,0.01027983,22267.0,22263.0,0.3]
[1674249719566,0.01027983,22267.0,22266.0,0.1373]
[1674249720055,0.01027983,22267.0,22266.0,1.03553]
[1674249720347,0.01027983,22267.0,22266.0,1.33553]
[1674249722461,0.01027983,22267.0,22266.0,1.59663]
[1674249722736,0.01027983,22267.0,22266.0,1.18297405]
[1674249723015,8.3e-07,22267.0,22266.0,1.39707405]
[1674249723269,0.00963102,22269.0,22267.0,0.15]
[1674249723542,0.01059753,22271.0,22268.0,1.296248]
[1674249723810,0.01014084,22272.0,22270.0,0.1369]
[1674249724073,0.15012211,22281.0,22271.0,1.933156]
[1674249724572,0.15012211,22281.0,22273.0,0.0686]
[1674249724574,6.7e-07,22274.0,22273.0,0.137]
[1674249724841,0.00012211,22281.0,22273.0,1.034948]
[1674249725099,0.00012211,22281.0,22274.0,0.3687]
[1674249725376,0.00012211,22281.0,22275.0,0.897866]
[1674249725699,0.00012211,22281.0,22276.0,0.2999304]
[1674249725910,0.00012211,22281.0,22276.0,0.73777861]
[1674249726173,0.00012211,22281.0,22276.0,1.40519161]
[1674249726690,0.00012211,22281.0,22276.0,1.40525161]
[1674249727238,0.00012211,22281.0,22276.0,1.25525161]
[1674249727537,0.00012211,22281.0,22276.0,0.966386]
[1674249728080,0.00012211,22281.0,22276.0,1.035086]
[1674249728343,0.00012211,22281.0,22276.0,1.185086]
[1674249728865,1.136,22285.0,22276.0,1.185086]
[1674249728866,1.00130061,22285.0,22276.0,1.185086]
[1674249729123,1.18632304,22285.0,22279.0,0.0687]
[1674249729392,0.15,22287.0,22280.0,1.346455]
[1674249729686,0.15,22287.0,22282.0,0.0686]
[1674249729945,1.1211329,22288.0,22283.0,0.897524]
[1674249730228,1.1211329,22288.0,22283.0,0.997524]
[1674249730229,0.01160041,22286.0,22283.0,0.997524]
[1674249730748,0.01160041,22286.0,22283.0,0.897524]
[1674249731266,0.01160041,22286.0,22283.0,0.448762]
[1674249732562,1.08822758,22285.0,22276.0,0.448966]
[1674249732822,1.08822758,22285.0,22276.0,0.448906]
[1674249732823,0.0687,22282.0,22276.0,0.448906]
[1674249733072,0.51444043,22281.0,22276.0,0.448906]
[1674249733340,0.18502243,22280.0,22276.0,0.448906]
[1674249733626,0.18502243,22279.0,22276.0,0.448906]
[1674249733884,0.15,22283.0,22276.0,0.448906]
[1674249734181,0.33502243,22283.0,22276.0,0.448906]
[1674249734461,0.18502243,22283.0,22281.0,0.0686]
[1674249734721,0.01160041,22286.0,22282.0,0.897584]
[1674249734994,0.01160041,22286.0,22283.0,0.3]
[1674249735266,0.01160041,22286.0,22285.0,0.0685]
[1674249736340,0.01160041,22286.0,22285.0,0.3685]
[1674249736594,0.01160041,22286.0,22285.0,0.0685]
[1674249736853,0.01160041,22286.0,22285.0,0.3685]
[1674249737108,0.01160041,22286.0,22285.0,0.5185]
[1674249740463,0.01160041,22286.0,22285.0,0.45]
[1674249740733,0.01160041,22286.0,22285.0,0.448732]
[1674249740734,0.01044037,22286.0,22285.0,0.448732]
[1674249741606,0.05688037,22286.0,22285.0,0.448732]
[1674249742067,0.05608037,22286.0,22284.0,0.448741]
[1674249742328,0.05608037,22286.0,22283.0,0.448763]
[1674249742583,0.302996,22285.0,22282.0,0.448791]
[1674249742849,0.327849,22284.0,22282.0,0.448791]
[1674249743109,0.18502243,22285.0,22282.0,0.448791]
[1674249743110,0.308889,22283.0,22282.0,0.448791]
[1674249743387,0.15964037,22286.0,22280.0,0.448818]
[1674249743646,0.18502243,22285.0,22280.0,0.448818]
[1674249743908,0.49325043,22284.0,22279.0,0.448844]
[1674249744202,0.50099543,22283.0,22279.0,0.448844]
[1674249744453,0.18502243,22283.0,22279.0,0.448844]
[1674249744735,0.32583037,22286.0,22279.0,0.448844]
[1674249744736,1.41283037,22286.0,22279.0,0.448844]
[1674249744991,1.5978528,22286.0,22279.0,0.448844]
[1674249745247,0.310046,22285.0,22279.0,0.448844]
[1674249745535,0.465948,22284.0,22279.0,0.448844]
[1674249745802,0.51648443,22283.0,22278.0,0.448864]
[1674249746090,0.66139343,22282.0,22277.0,0.448888]
[1674249746356,0.50055143,22281.0,22276.0,0.448904]
[1674249746617,0.50055143,22281.0,22274.0,0.448936]
[1674249746618,0.65318743,22280.0,22274.0,0.448936]
[1674249747098,0.49775943,22279.0,22274.0,0.448936]
[1674249747375,0.18502243,22278.0,22274.0,0.448936]
[1674249747642,0.18502243,22277.0,22274.0,0.448936]
[1674249747912,0.311952,22276.0,22272.0,0.44899]
[1674249748197,0.18502243,22275.0,22272.0,0.44899]
[1674249748700,0.1681,22278.0,22272.0,0.44899]
[1674249748964,0.35312243,22278.0,22272.0,0.44899]
[1674249749507,1.3383,22280.0,22273.0,0.45]
[1674249749739,1.1883,22280.0,22275.0,0.897862]
[1674249750007,0.2627,22284.0,22276.0,0.3]
[1674249750273,1.4016,22284.0,22278.0,0.448865]
[1674249750534,1.1389,22284.0,22278.0,0.448865]
[1674249751086,1.1389,22284.0,22279.0,0.3]
[1674249751349,1.08064037,22286.0,22280.0,0.598822]
[1674249751350,0.00964037,22286.0,22280.0,0.598822]
[1674249751853,0.00964037,22286.0,22282.0,0.1127]
[1674249752135,0.00964037,22286.0,22283.0,0.897536]
[1674249752876,0.00964037,22286.0,22284.0,0.3]
[1674249753131,0.00964037,22286.0,22285.0,0.448732]
[1674249753670,0.00464037,22286.0,22285.0,0.448732]
[1674249753938,0.00464037,22286.0,22284.0,0.448735]
[1674249756546,0.00464037,22286.0,22284.0,0.44851741]
[1674249757378,0.00464037,22286.0,22283.0,0.448762]
[1674249758087,0.00464037,22286.0,22284.0,0.3]
[1674249758330,0.00464037,22286.0,22284.0,0.748734]
[1674249758863,0.00464037,22286.0,22285.0,0.15]
[1674249759111,0.00464037,22286.0,22285.0,0.598732]
[1674249760376,0.00464037,22286.0,22285.0,0.898732]
[1674249760890,0.00464037,22286.0,22285.0,0.448732]
[1674249761147,0.05108037,22286.0,22285.0,0.448732]
[1674249761915,0.05108037,22286.0,22283.0,0.448762]
[1674249762171,0.328873,22285.0,22282.0,0.448785]
[1674249762425,0.311813,22284.0,22282.0,0.20213533]
[1674249762676,0.315436,22283.0,22282.0,0.20213533]
[1674249762928,0.310436,22283.0,22281.0,0.448803]
[1674249763179,0.32587037,22286.0,22280.0,0.448831]
[1674249763180,0.15,22285.0,22280.0,0.448831]
[1674249763442,0.33502243,22285.0,22280.0,0.448831]
[1674249763698,0.305132,22284.0,22280.0,0.448831]
[1674249763959,0.298143,22283.0,22280.0,0.448831]
[1674249764218,0.15,22285.0,22280.0,0.448831]
[1674249764472,0.33502243,22285.0,22280.0,0.448831]
[1674249764737,0.336351,22284.0,22280.0,0.448831]
[1674249765025,0.311988,22283.0,22280.0,0.448831]
[1674249765250,0.320831,22282.0,22280.0,0.448831]
[1674249765499,0.320612,22281.0,22280.0,0.448831]
[1674249765752,0.1118,22284.0,22280.0,0.448831]
[1674249766822,0.29682243,22284.0,22280.0,0.448831]
[1674249767053,0.31809,22283.0,22280.0,0.448831]
[1674249767305,0.318269,22282.0,22278.0,0.448867]
[1674249767559,0.17194628,22284.0,22278.0,0.448867]
[1674249767560,0.49937643,22281.0,22278.0,0.448867]
[1674249767836,0.32377,22280.0,22278.0,0.448867]
[1674249768090,0.17194628,22284.0,22278.0,0.448867]
[1674249768336,0.29682243,22284.0,22278.0,0.24699739]
[1674249768586,0.315013,22283.0,22278.0,0.24699739]
[1674249768906,0.327788,22282.0,22278.0,0.24699739]
[1674249769146,0.1127,22279.0,22275.0,0.448929]
[1674249769364,0.49113643,22278.0,22275.0,0.448929]
[1674249769662,0.18502243,22277.0,22272.0,1.346779]
[1674249769923,0.18502243,22276.0,22272.0,1.346779]
[1674249770259,0.18502243,22275.0,22273.0,0.15]
[1674249770431,0.47295243,22279.0,22273.0,0.1]
[1674249770685,0.47295243,22279.0,22272.0,0.448979]
[1674249770939,0.18502243,22278.0,22272.0,0.448979]
[1674249771201,0.18002243,22277.0,22272.0,0.448979]
[1674249771458,0.316784,22276.0,22272.0,0.448979]
[1674249771718,0.50133443,22275.0,22271.0,0.448995]
[1674249771999,0.50714543,22274.0,22270.0,0.45706138]
[1674249772278,0.14087224,22277.0,22270.0,0.45706138]
[1674249772279,0.61120643,22273.0,22270.0,0.45706138]
[1674249772535,0.293166,22272.0,22270.0,0.45706138]
[1674249772832,0.334937,22271.0,22270.0,0.00803738]
[1674249773065,0.2627,22273.0,22270.0,0.00803738]
[1674249773337,0.3113,22272.0,22270.0,0.00803738]
[1674249773574,0.317576,22271.0,22270.0,0.45705738]
[1674249773830,0.1127,22275.0,22270.0,0.45705738]
[1674249774119,0.28704,22278.0,22270.0,0.45705738]
[1674249774120,0.43704,22278.0,22271.0,0.19429759]
[1674249774365,0.43704,22278.0,22272.0,0.448981]
[1674249774629,0.15,22277.0,22272.0,0.443981]
[1674249774874,0.294598,22276.0,22272.0,0.443981]
[1674249775129,0.33502243,22277.0,22272.0,0.443981]
[1674249775397,0.311884,22276.0,22272.0,0.438981]
[1674249775648,0.289286,22275.0,22272.0,0.438981]
[1674249775902,0.299782,22274.0,22271.0,0.03175759]
[1674249776156,0.431082,22273.0,22271.0,0.03175759]
[1674249776409,0.62250743,22272.0,22271.0,0.03175759]
[1674249776938,0.437485,22272.0,22271.0,0.03175759]
[1674249777454,1.00465815,22272.0,22271.0,0.03175759]
[1674249778216,1.15465815,22272.0,22271.0,0.03175759]
[1674249778475,0.550185,22272.0,22271.0,0.03181759]
[1674249781072,0.325885,22272.0,22271.0,0.03181759]
[1674249781313,0.1127,22275.0,22271.0,0.03181759]
[1674249781844,0.1127,22275.0,22271.0,0.48082559]
[1674249782080,0.2623,22278.0,22272.0,0.462538]
[1674249782081,0.1123,22278.0,22272.0,0.462538]
[1674249782337,0.1123,22278.0,22273.0,0.448963]
[1674249782858,0.15,22279.0,22273.0,0.448963]
[1674249783113,0.33502243,22279.0,22274.0,0.3]
[1674249783365,0.15,22279.0,22274.0,0.448947]
[1674249784196,0.2627,22280.0,22274.0,0.448947]
[1674249784478,0.44772243,22280.0,22274.0,0.448947]
[1674249784738,0.18502243,22280.0,22275.0,0.3]
[1674249785011,0.2627,22282.0,22276.0,0.448903]
[1674249785249,0.15,22282.0,22276.0,0.448903]
[1674249785512,0.28502243,22282.0,22276.0,0.448903]
[1674249785821,0.27002243,22282.0,22276.0,0.448903]
[1674249786391,0.75219558,22281.0,22274.0,6e-05]
[1674249786634,0.49482443,22280.0,22274.0,0.449005]
[1674249786892,0.51735443,22279.0,22274.0,0.449005]
[1674249787142,0.18502243,22278.0,22274.0,0.449005]
[1674249787408,0.18502243,22278.0,22274.0,6e-05]
[1674249788178,0.15,22279.0,22274.0,6e-05]
[1674249788435,0.085,22282.0,22274.0,0.749003]
[1674249788698,0.085,22282.0,22275.0,0.012525]
[1674249788972,0.085,22282.0,22277.0,0.897782]
[1674249789216,1.3452,22284.0,22279.0,0.15]
[1674249789217,0.15,22284.0,22279.0,0.15]
[1674249789477,0.15,22284.0,22280.0,0.012512]
[1674249789733,0.15,22284.0,22280.0,0.448822]
[1674249790513,0.455675,22284.0,22280.0,0.448822]
[1674249790786,0.316656,22283.0,22279.0,0.448837]
[1674249791041,0.459228,22282.0,22279.0,0.448837]
[1674249791301,0.459228,22282.0,22275.0,0.448925]
[1674249791302,0.408225,22281.0,22275.0,0.448925]
[1674249791555,0.49321443,22280.0,22275.0,0.448925]
[1674249791814,0.1118,22281.0,22275.0,0.448925]
[1674249791815,0.18502243,22279.0,22275.0,0.448925]
[1674249792547,0.1118,22281.0,22275.0,0.448925]
[1674249792794,0.29682243,22281.0,22276.0,0.15]
[1674249793052,0.1118,22281.0,22277.0,0.897774]
[1674249793563,0.15,22282.0,22277.0,0.897774]
[1674249794307,0.18502243,22282.0,22277.0,0.897774]
[1674249794576,0.26644037,22286.0,22278.0,0.3]
[1674249794836,0.4514628,22286.0,22279.0,0.598836]
[1674249795342,0.3396628,22286.0,22279.0,0.448836]
[1674249795593,0.18502243,22285.0,22279.0,0.448836]
[1674249795888,0.18502243,22285.0,22278.0,0.448855]
[1674249795889,0.15,22283.0,22278.0,0.448855]
[1674249796093,0.51041643,22282.0,22278.0,0.448855]
[1674249796338,0.318659,22281.0,22278.0,0.448855]
[1674249796575,0.18502243,22281.0,22278.0,0.448855]
[1674249796849,0.18502243,22281.0,22277.0,0.448883]
[1674249797377,0.0119928,22281.0,22277.0,0.448883]
[1674249797633,0.0119928,22281.0,22276.0,0.9153]
[1674249797907,0.19701523,22281.0,22275.0,1.13832509]
[1674249798135,0.18502243,22280.0,22275.0,0.448923]
[1674249798649,0.323185,22279.0,22275.0,0.22199413]
[1674249798903,0.31706,22278.0,22275.0,0.22199413]
[1674249799170,0.0119928,22281.0,22276.0,0.15]
[1674249799409,0.0119928,22281.0,22277.0,0.897775]
[1674249801720,0.0119928,22281.0,22279.0,0.15]
[1674249801971,0.0119928,22281.0,22280.0,0.512831]
[1674249803021,0.0119928,22281.0,22280.0,0.807831]
[1674249803296,0.0119928,22281.0,22280.0,0.507831]
[1674249803853,0.0119928,22281.0,22280.0,0.500313]
[1674249804634,0.1099128,22281.0,22279.0,0.448847]
[1674249804897,0.33285428,22280.0,22274.0,0.44894]
[1674249805149,0.49460743,22279.0,22273.0,1.351964]
[1674249805401,0.50159643,22278.0,22273.0,1.351964]
[1674249805695,0.01099128,22280.0,22273.0,1.351964]
[1674249805696,0.18502243,22277.0,22273.0,1.351964]
[1674249805918,0.01099128,22280.0,22273.0,0.448964]
[1674249805919,0.18502243,22276.0,22273.0,0.448964]
[1674249806437,0.15,22280.0,22273.0,0.448964]
[1674249806689,0.33502243,22280.0,22274.0,0.15]
[1674249806947,0.33502243,22280.0,22275.0,0.897835]
[1674249807208,0.2742928,22281.0,22275.0,0.66629789]
[1674249807486,0.45971523,22281.0,22275.0,0.448927]
[1674249807727,0.0119928,22281.0,22275.0,0.448927]
[1674249807979,0.19701523,22281.0,22275.0,0.448927]
[1674249808869,0.65884943,22280.0,22275.0,0.448927]
[1674249809022,0.473827,22280.0,22275.0,0.448927]
[1674249809272,0.313691,22279.0,22275.0,0.448927]
[1674249809517,0.321373,22278.0,22274.0,0.448947]
[1674249809779,0.18502243,22278.0,22274.0,0.448947]
[1674249810032,0.1619928,22281.0,22274.0,0.23677278]
[1674249810280,0.1619928,22281.0,22275.0,0.3]
[1674249810526,0.0119928,22281.0,22276.0,0.897796]
[1674249810787,0.0119928,22281.0,22277.0,0.15]
[1674249811030,0.0119928,22281.0,22278.0,0.897738]
[1674249811798,0.0119928,22281.0,22279.0,0.15]
[1674249812039,0.0119928,22281.0,22280.0,0.448833]
[1674249813084,0.0119928,22281.0,22278.0,0.897738]
[1674249814343,0.0119928,22281.0,22279.0,0.3]
[1674249814602,0.0119928,22281.0,22280.0,1.047666]
[1674249814846,0.0119928,22281.0,22280.0,1.347666]
[1674249815362,0.0119928,22281.0,22280.0,1.047666]
[1674249815637,0.0541928,22281.0,22279.0,0.1127]
[1674249815917,0.0119928,22281.0,22278.0,0.448869]
[1674249816714,0.19701523,22281.0,22276.0,0.448911]
[1674249816967,0.48344243,22280.0,22276.0,0.448911]
[1674249817233,0.319198,22279.0,22276.0,0.448911]
[1674249817486,0.0119928,22281.0,22276.0,0.448911]
[1674249817743,0.0119928,22281.0,22277.0,0.15]
[1674249817996,0.0119928,22281.0,22278.0,0.897738]
[1674249818767,0.0119928,22281.0,22279.0,0.3]
[1674249819062,0.0119928,22281.0,22280.0,0.448833]
[1674249820601,0.0119928,22281.0,22280.0,0.443833]
[1674249821379,0.0119928,22281.0,22280.0,0.2060938]
[1674249822253,0.0541928,22281.0,22280.0,0.2060938]
[1674249822521,0.0541928,22281.0,22278.0,0.448869]
[1674249822805,0.29759,22280.0,22276.0,0.448906]
[1674249823085,0.48261243,22280.0,22276.0,0.448906]
[1674249823332,0.18502243,22280.0,22276.0,0.448906]
[1674249823588,0.0119928,22281.0,22277.0,0.15]
[1674249823844,0.0119928,22281.0,22277.0,0.598874]
[1674249824863,0.0119928,22281.0,22277.0,0.448874]
[1674249825883,0.0119928,22281.0,22278.0,0.285]
[1674249826141,0.0119928,22281.0,22279.0,0.897706]
[1674249826681,0.0119928,22281.0,22280.0,0.15]
[1674249826948,0.0119928,22281.0,22279.0,0.897706]
[1674249827482,0.0119928,22281.0,22279.0,0.6843431]
[1674249827738,0.0119928,22281.0,22280.0,0.3]
[1674249828007,0.0119928,22281.0,22279.0,0.6843431]
[1674249828586,0.0119928,22281.0,22280.0,0.06783964]
[1674249828842,0.0119928,22281.0,22280.0,0.560733]